{"text_format":"1","workbook":"xlsx","n_sheets":7,"sheets":["sheet1","md","mad","fffff","ddddd","eeeee","xxxxx"],"not_rendered":{"charts":0,"images":0,"macros":1,"external_links":0,"defined_names":0,"comments":0,"pivot_tables":0},"unopened":[],"bounds":{"document_bytes":16777216,"sheet_cells":100000,"rows_first":2000,"rows_last":500,"rows_between":2000,"halvings":0,"cell_chars":16384,"cell_head_chars":4096},"cells_cut":0,"cells_raw":0,"read":"whole","date_system":"1900"}

{"sheet":"sheet1","index":0,"n_rows":15,"n_cols":6,"rows_kept":15,"cut":false,"hidden":false,"merged":[]}
["م","اسم البند","اجمالي تكلفة الاعمال","النسبة","اجمالي تكلفة الاعمال","رجوع"]
[1,null,{"$f":"md!E1","v":15000},{"$f":"IFERROR(INDIRECT(\"'\"&B2&\"'!\"&\"e1\"),\"\")","v":""}]
[2,null,{"$f":"mad!E1","v":16000},{"$f":"IFERROR(INDIRECT(\"'\"&B3&\"'!\"&\"e1\"),\"\")","v":""}]
[3,null,{"$f":"fffff!E1","v":52465654},""]
[4,null,{"$f":"ddddd!E1","v":1423523},""]
[5,null,{"$f":"eeeee!E1","v":2353264},""]
[6,null,{"$f":"xxxxx!E1","v":56677777},"",null,"اضغط على الزر"]
[7,null,null,""]
[8,null,null,""]
[9,null,null,""]
[10,null,null,""]
[null,null,null,""]
[null,null,null,""]
[null,null,null,""]
[null,null,null,""]

{"sheet":"md","index":1,"n_rows":1,"n_cols":9,"rows_kept":1,"cut":false,"hidden":false,"merged":[]}
[null,null,null,null,15000,"رجوع",null,null,"رجوع"]

{"sheet":"mad","index":2,"n_rows":1,"n_cols":9,"rows_kept":1,"cut":false,"hidden":false,"merged":[]}
[null,null,null,null,16000,"رجوع",null,null,"رجوع"]

{"sheet":"fffff","index":3,"n_rows":1,"n_cols":9,"rows_kept":1,"cut":false,"hidden":false,"merged":[]}
[null,null,null,null,52465654,"رجوع",null,null,"رجوع"]

{"sheet":"ddddd","index":4,"n_rows":1,"n_cols":9,"rows_kept":1,"cut":false,"hidden":false,"merged":[]}
[null,null,null,null,1423523,"رجوع",null,null,"رجوع"]

{"sheet":"eeeee","index":5,"n_rows":1,"n_cols":9,"rows_kept":1,"cut":false,"hidden":false,"merged":[]}
[null,null,null,null,2353264,"رجوع",null,null,"رجوع"]

{"sheet":"xxxxx","index":6,"n_rows":1,"n_cols":9,"rows_kept":1,"cut":false,"hidden":false,"merged":[]}
[null,null,null,null,56677777,"رجوع",null,null,"رجوع"]